bitfinex/quotes_ETHUSD_20250807
["timestamp","ask_amount","ask_price","bid_price","bid_amount"]
[1754549644432,0.243358,3706.1,3706.0,0.001]
[1754549644762,4.3022,3706.1,3706.0,0.001]
[1754549645483,4.7435,3706.1,3706.0,0.001]
[1754549645689,5.2411,3706.1,3706.0,0.001]
[1754549646044,7.93935422,3706.1,3706.0,0.001]
[1754549646372,7.29774465,3706.1,3706.0,0.001]
[1754549647447,19.43521682,3706.1,3706.0,0.001]
[1754549647783,7.29674465,3706.1,3706.0,0.001]
[1754549649194,9.99499887,3706.1,3706.0,0.001]
[1754549649493,12.99499887,3706.1,3706.0,0.001]
[1754549649645,13.88505413,3706.1,3706.0,0.001]
[1754549649848,13.99322013,3706.1,3706.0,0.001]
[1754549650453,14.31265885,3706.1,3706.0,0.001]
[1754549651645,6.90782101,3706.0,3705.9,0.001]
[1754549651844,10.49171979,3706.0,3705.9,1e-08]
[1754549655009,6.24854548,3705.7,3705.6,1e-08]
[1754549655214,20.64845741,3705.7,3705.6,1e-08]
[1754549655398,24.30027281,3705.7,3705.6,1e-08]
[1754549658537,3.0,3704.2,3704.0,0.4868]
[1754549658698,7.166,3704.1,3704.0,0.4868]
[1754549659034,7.3012,3704.1,3704.0,0.4868]
[1754549660159,3.0,3704.0,3703.4,2.70020555]
[1754549660370,4.166,3703.9,3703.5,0.1349]
[1754549660529,4.166,3703.9,3703.5,2.83504767]
[1754549660726,0.1352,3703.8,3703.6,3.31665929]
[1754549660927,4.166,3703.7,3703.6,2.70005929]
[1754549661445,4.166,3703.7,3703.6,0.4817]
[1754549661644,4.166,3703.7,3703.6,0.6166]
[1754549663974,4.166,3703.7,3703.6,0.4817]
[1754549666135,4.166,3703.7,3703.3,2.70028963]
[1754549666365,4.166,3703.7,3703.4,3.18191739]
[1754549666568,4.166,3703.7,3703.5,0.4817]
[1754549666747,4.166,3703.7,3703.5,3.18182733]
[1754549666950,4.166,3703.7,3703.6,0.4817]
[1754549670314,0.1352,3703.8,3703.6,3.1817756]
[1754549670493,4.166,3703.7,3703.6,0.4817]
[1754549672613,4.166,3703.7,3703.5,2.70012919]
[1754549672814,4.166,3703.7,3703.5,3.18182919]
[1754549673923,4.166,3703.7,3703.6,2.7000756]
[1754549674107,4.165,3703.7,3703.5,3.18183005]
[1754549674835,4.165,3703.7,3703.4,2.70020542]
[1754549674985,4.165,3703.7,3703.4,3.18190542]
[1754549675521,4.165,3703.7,3703.4,0.4817]
[1754549675695,0.1352,3703.6,3703.3,2.70028661]
[1754549676018,0.1352,3703.6,3703.3,3.18198661]
[1754549676218,0.1352,3703.6,3703.3,2.70028661]
[1754549676399,0.5897,3703.6,3703.3,2.70028661]
[1754549677311,1.0697,3703.6,3703.3,2.70028661]
[1754549677618,1.0697,3703.6,3703.4,2.7002084]
[1754549677786,1.0697,3703.6,3703.3,2.70028581]
[1754549677987,0.4545,3703.5,3703.3,2.70028581]
[1754549678848,0.4545,3703.5,3703.2,2.70034559]
[1754549680022,0.4545,3703.5,3703.4,2.70022141]
[1754549680335,0.1352,3703.6,3703.0,2.83564752]
[1754549680536,0.9345,3703.5,3703.0,2.83564752]
[1754549680737,0.1352,3703.6,3703.2,2.7002967]
[1754549681044,0.1352,3703.6,3703.3,2.70025997]
[1754549681421,0.9345,3703.5,3703.3,2.70025997]
[1754549681744,4.164,3703.4,3703.3,2.70025997]
[1754549682253,5.0985,3703.4,3702.8,0.4827]
[1754549682437,0.6152,3703.3,3702.9,2.70058602]
[1754549682760,0.4545,3703.2,3702.9,2.70058602]
[1754549683252,0.4545,3703.1,3702.8,2.70163907]
[1754549683455,0.1352,3703.1,3702.8,2.70165638]
[1754549683622,0.1352,3703.1,3702.8,3.18335638]
[1754549683822,0.1352,3703.1,3703.0,2.70051309]
[1754549684257,0.1352,3703.1,3702.9,2.70057963]
[1754549684561,0.1352,3703.1,3702.8,2.7016398]
[1754549684727,0.1352,3703.1,3702.8,2.70164661]
[1754549685066,4.164,3703.0,3702.8,0.001]
[1754549685216,5.0985,3703.0,3702.8,0.001]
[1754549685416,1.0697,3702.9,3702.8,0.001]
[1754549685821,3.77028602,3702.9,3702.8,0.001]
[1754549686029,4.0697,3702.9,3702.8,0.001]
[1754549686450,0.1352,3702.9,3702.8,0.001]
[1754549686659,0.1352,3703.3,3702.8,3.31855896]
[1754549686936,4.164,3703.2,3703.1,2.70044017]
[1754549687166,0.1352,3703.3,3703.1,2.70044017]
[1754549687167,0.1352,3703.3,3703.2,2.70036724]
[1754549687472,4.2992,3703.3,3703.2,3.18206724]
[1754549687838,0.1352,3703.3,3703.2,2.70036724]
[1754549688861,4.2992,3703.3,3703.2,2.70036724]
[1754549689369,4.7537,3703.3,3702.9,2.70057789]
[1754549689665,5.2337,3703.3,3702.9,2.70057789]
[1754549689874,1.0697,3703.3,3702.9,2.70057789]
[1754549690103,4.164,3703.2,3703.0,2.70051309]
[1754549690244,0.938,3703.2,3703.0,2.70051309]
[1754549690426,5.102,3703.2,3703.0,2.70051309]
[1754549690631,5.102,3703.2,3703.0,2.70050673]
[1754549690872,4.6452,3703.2,3703.0,2.70050673]
[1754549691172,0.4568,3703.1,3703.0,2.70050673]
[1754549691976,4.6452,3703.2,3703.1,2.70044017]
[1754549692182,5.102,3703.2,3703.1,2.70044017]
[1754549693080,4.6208,3703.2,3703.1,2.70044017]
[1754549693381,5.102,3703.2,3703.0,2.70050539]
[1754549693536,0.4568,3703.1,3703.0,2.70050539]
[1754549694670,4.6452,3703.2,3703.1,2.70044017]
[1754549695036,4.164,3703.2,3703.1,2.70044017]
[1754549695942,0.1352,3703.3,3703.2,2.70036724]
[1754549696148,4.2982,3703.3,3703.2,2.70036724]
[1754549696928,4.2982,3703.3,3703.2,3.17776724]
[1754549697447,4.163,3703.3,3703.2,3.17776724]
[1754549699406,4.163,3703.3,3703.2,2.70036724]
[1754549701108,5.101,3703.3,3703.1,2.83562369]
[1754549701447,0.938,3703.2,3703.1,2.70042369]
[1754549701592,0.4568,3703.2,3702.8,0.1362]
[1754549701792,0.4812,3703.1,3702.8,0.001]
[1754549702124,4.162,3703.0,3702.8,0.001]
[1754549702324,0.1352,3702.9,3702.8,0.001]
[1754549702489,1.0732,3702.9,3702.8,0.001]
[1754549702891,4.59672,3702.9,3702.8,0.001]
[1754549706236,7.29730602,3702.9,3702.8,0.001]
[1754549706436,8.18736128,3702.9,3702.8,0.001]
[1754549706609,17.62657923,3702.9,3702.8,0.001]
[1754549706940,8.18736128,3702.9,3702.8,0.001]
[1754549707141,7.84730602,3702.9,3702.8,0.001]
[1754549707652,4.66552,3702.9,3702.8,0.001]
[1754549707799,9.415982,3702.9,3702.8,0.001]
[1754549708220,8.865982,3702.9,3702.8,0.001]
[1754549711108,11.56656802,3702.9,3702.8,0.001]
[1754549711897,8.865982,3702.9,3702.8,0.001]
[1754549712526,11.56656802,3702.9,3702.8,0.001]
[1754549712775,21.55578597,3702.9,3702.8,0.001]
[1754549713880,4.773782,3702.9,3702.8,0.001]
[1754549714029,9.415982,3702.9,3702.8,0.001]
[1754549714233,12.11656802,3702.9,3702.8,0.001]
[1754549714673,9.415982,3702.9,3702.8,0.001]
[1754549715133,7.927982,3702.9,3702.8,0.001]
[1754549715439,8.865982,3702.9,3702.8,0.001]
[1754549715935,4.704982,3702.9,3702.8,0.001]
[1754549716811,8.864982,3702.9,3702.8,0.001]
[1754549717704,11.56556802,3702.9,3702.8,0.001]
[1754549718186,8.864982,3702.9,3702.8,0.001]
[1754549718371,11.56556802,3702.9,3702.8,0.001]
[1754549718572,12.11556802,3702.9,3702.8,0.001]
[1754549718989,9.414982,3702.9,3702.8,0.001]
[1754549720012,12.11556802,3702.9,3702.8,0.001]
[1754549720918,21.55478597,3702.9,3702.8,0.001]
[1754549721690,21.89484123,3702.9,3702.8,0.001]
[1754549722388,21.55478597,3702.9,3702.8,0.001]
[1754549723209,14.69419995,3702.9,3702.8,0.001]
[1754549723413,21.55478597,3702.9,3702.8,0.001]
[1754549725426,17.39478597,3702.9,3702.8,0.001]
[1754549725571,21.55378597,3702.9,3702.8,0.001]
[1754549725766,18.85319995,3702.9,3702.8,0.001]
[1754549726016,21.55378597,3702.9,3702.8,0.001]
[1754549727417,21.89384123,3702.9,3702.8,0.001]
[1754549727573,19.19325521,3702.9,3702.8,0.001]
[1754549727823,21.55378597,3702.9,3702.8,0.001]
[1754549728564,18.85319995,3702.9,3702.8,0.001]
[1754549729125,21.55378597,3702.9,3702.8,0.001]
[1754549729961,18.85319995,3702.9,3702.8,0.001]
[1754549730515,21.55378597,3702.9,3702.8,0.001]
[1754549731958,18.85319995,3702.9,3702.8,0.001]
[1754549732259,21.55378597,3702.9,3702.8,0.001]
[1754549733355,9.413982,3702.9,3702.8,0.001]
[1754549734026,12.11456802,3702.9,3702.8,0.001]
[1754549734468,9.413982,3702.9,3702.8,0.001]
[1754549735573,12.11456802,3702.9,3702.8,0.001]
[1754549735779,9.413982,3702.9,3702.8,0.001]
[1754549737495,12.11456802,3702.9,3702.8,0.001]
[1754549738697,9.413982,3702.9,3702.8,0.001]
[1754549739288,12.11456802,3702.9,3702.8,0.001]
[1754549741225,9.413982,3702.9,3702.8,0.001]
[1754549741374,3.243462,3702.9,3702.8,0.001]
[1754549741710,7.400462,3702.9,3702.8,0.5001]
[1754549742306,3.243462,3702.9,3702.8,0.5001]
[1754549742507,4.400462,3702.9,3702.8,3.20075896]
[1754549742811,7.400462,3702.9,3702.8,0.5001]
[1754549743028,7.400462,3702.9,3702.8,3.20075896]
[1754549743192,0.243462,3702.9,3702.8,3.33565896]
[1754549743394,4.2922,3702.9,3702.8,3.33565896]
[1754549743620,4.2922,3702.9,3702.8,3.20075896]
[1754549744310,4.2922,3702.9,3702.8,0.5001]
[1754549744491,4.2922,3702.9,3702.8,0.001]
[1754549744694,5.2478,3702.9,3702.8,0.001]
[1754549744894,7.39768389,3702.9,3702.8,0.001]
[1754549745129,10.39768389,3702.9,3702.8,0.001]
[1754549745328,10.94768389,3702.9,3702.8,0.001]
[1754549745530,14.30776389,3702.9,3702.8,0.001]
[1754549747249,14.56065129,3702.9,3702.8,0.001]
[1754549748026,10.40365129,3702.9,3702.8,0.001]
[1754549748216,13.90015731,3702.9,3702.8,0.001]
[1754549750455,23.33937526,3702.9,3702.8,0.001]
[1754549751946,23.44764926,3702.9,3702.8,0.001]
[1754549753068,23.44761409,3702.9,3702.8,0.001]
[1754549753267,15.63542807,3702.9,3702.8,0.001]
[1754549753444,8.64582623,3702.9,3702.8,0.001]
[1754549753644,9.11092623,3702.9,3702.8,0.001]
[1754549754381,21.2507302,3702.9,3702.8,0.001]
[1754549755954,21.25072912,3702.9,3702.8,0.001]
[1754549756136,24.29777957,3702.9,3702.8,0.001]
[1754549759188,9.47557303,3702.9,3702.8,0.001]
[1754549759385,10.90091117,3702.9,3702.8,0.001]
[1754549760020,11.34541117,3702.9,3702.8,0.001]
[1754549760189,11.81051117,3702.9,3702.8,0.001]
[1754549762008,18.99051117,3702.9,3702.8,0.001]
[1754549763996,18.08091117,3702.9,3702.8,0.001]
[1754549764195,20.80957303,3702.9,3702.8,0.001]
[1754549766126,21.25407303,3702.9,3702.8,0.001]
[1754549766508,21.71917303,3702.9,3702.8,0.001]
[1754549768008,10.67632515,3702.9,3702.8,0.4849]
[1754549768209,17.52991117,3702.9,3702.8,0.4849]
[1754549768628,17.52991117,3702.9,3702.8,0.001]
[1754549768790,18.07991117,3702.9,3702.8,0.001]
[1754549770286,18.98951117,3702.9,3702.8,0.001]
[1754549770489,21.71817303,3702.9,3702.8,0.001]
[1754549770731,14.53817303,3702.9,3702.8,0.001]
[1754549772185,14.07307303,3702.9,3702.8,0.001]
[1754549772523,14.53817303,3702.9,3702.8,0.001]
[1754549773056,14.07307303,3702.9,3702.8,0.001]
[1754549773264,13.62857303,3702.9,3702.8,0.001]
[1754549773859,10.89891117,3702.9,3702.8,0.4849]
[1754549774160,8.19832515,3702.9,3702.8,0.001]
[1754549774363,10.89891117,3702.9,3702.8,0.4849]
[1754549774938,10.89891117,3702.9,3702.8,0.001]
[1754549776224,11.34341117,3702.9,3702.8,0.001]
[1754549776425,13.73823071,3702.9,3702.8,0.001]
[1754549776624,14.20333071,3702.9,3702.8,0.001]
[1754549776834,23.64254866,3702.9,3702.8,0.001]
[1754549778141,23.38969751,3702.9,3702.8,0.001]
[1754549778474,23.7080861,3702.9,3702.8,0.001]
[1754549778671,23.68913623,3702.9,3702.8,1e-08]
[1754549778967,24.26042603,3702.9,3702.8,1e-08]
[1754549780178,24.00752482,3702.9,3702.8,1e-08]
[1754549780782,15.69002278,3702.6,3702.5,0.001]
[1754549780980,20.84690146,3702.6,3702.5,0.001]
[1754549781475,21.62724009,3702.6,3702.5,0.001]
[1754549782476,21.88005899,3702.6,3702.5,0.001]
[1754549783280,21.88005899,3702.6,3702.5,1e-08]
[1754549783576,6.56926636,3702.5,3702.4,0.001]
[1754549783779,7.74698526,3702.5,3702.4,0.001]
[1754549784075,8.04642398,3702.5,3702.4,0.001]
[1754549784307,8.53302398,3702.5,3702.4,0.001]
[1754549785186,8.80345134,3702.5,3702.4,0.001]
[1754549785365,11.19827088,3702.5,3702.4,0.001]
[1754549785564,18.37827088,3702.5,3702.4,0.001]
[1754549787254,15.69038755,3702.1,3699.3,12.14238326]
[1754549787503,15.69038755,3702.1,3700.9,0.4866]
[1754549787504,20.09393381,3702.1,3700.9,0.4866]
[1754549787903,21.83114681,3702.1,3701.1,0.4866]
[1754549788208,27.31336896,3702.1,3702.0,1e-08]
[1754549788494,31.46436896,3702.1,3702.0,1e-08]
[1754549789265,27.31336896,3702.1,3702.0,1e-08]
[1754549789467,30.53946896,3702.1,3702.0,1e-08]
[1754549789997,31.00086896,3702.1,3702.0,1e-08]
[1754549790289,31.46436896,3702.1,3702.0,1e-08]
[1754549791695,30.53946896,3702.1,3702.0,1e-08]
[1754549791924,31.46436896,3702.1,3702.0,1e-08]
[1754549793123,31.66768644,3702.1,3702.0,1e-08]
[1754549794620,34.51468644,3702.1,3702.0,1e-08]
[1754549795322,34.78538644,3702.1,3702.0,1e-08]
[1754549797215,34.92058644,3702.1,3702.0,1e-08]
[1754549797583,35.23897503,3702.1,3702.0,1e-08]
[1754549801120,35.53841375,3702.1,3702.0,1e-08]
[1754549801804,2.70175343,3701.3,3701.2,0.001]
[1754549802009,20.22871764,3701.3,3701.2,0.001]
[1754549802257,21.80340115,3701.3,3701.2,0.001]
[1754549802456,22.29000115,3701.3,3701.2,0.001]
[1754549802957,22.75140115,3701.3,3701.2,0.001]
[1754549803119,4.42434626,3701.3,3701.2,0.4876]
[1754549803445,11.27609969,3701.3,3701.2,0.6225]
[1754549803601,11.27609969,3701.3,3701.2,0.4876]
[1754549804343,20.71531764,3701.3,3701.2,0.001]
[1754549804522,23.05701212,3701.3,3701.2,0.001]
[1754549804723,23.05701212,3701.3,3701.2,0.4876]
[1754549804919,23.05701212,3701.3,3701.2,0.001]
[1754549805243,23.98191212,3701.3,3701.2,0.001]
[1754549806454,24.30030071,3701.3,3701.2,0.001]
[1754549807416,20.15030071,3701.3,3701.2,0.001]
[1754549807743,23.05601212,3701.3,3701.2,0.001]
[1754549808367,18.90701212,3701.3,3701.2,0.001]
[1754549808522,23.05701212,3701.3,3701.2,0.4876]
[1754549808717,11.27494063,3701.3,3701.2,0.4876]
[1754549808945,11.27494063,3701.3,3701.2,0.6225]
[1754549809221,11.27494063,3701.3,3701.2,0.4376]
[1754549809950,8.5731872,3701.3,3701.2,0.5725]
[1754549810157,11.27494063,3701.3,3701.2,0.5725]
[1754549810361,8.5731872,3701.3,3700.1,0.1352]
[1754549810522,6.50424616,3701.2,3700.9,0.1349]
[1754549810717,0.1352,3700.6,3700.2,2.70255113]
[1754549810944,4.149,3700.5,3700.3,0.28387511]
[1754549811256,0.1352,3700.6,3700.4,3.16345789]
[1754549811458,4.149,3700.5,3700.4,2.70235789]
[1754549812156,4.149,3700.5,3700.4,3.29835789]
[1754549812466,0.1352,3700.6,3700.5,2.70233752]
[1754549812664,0.1352,3700.6,3700.5,3.29833752]
[1754549812665,4.2842,3700.6,3700.5,3.29833752]
[1754549812846,7.2842,3700.6,3700.5,3.29833752]
[1754549813156,7.2842,3700.6,3700.5,0.4611]
[1754549813357,7.2842,3700.6,3700.5,0.596]
[1754549813867,7.2842,3700.6,3700.3,0.28387511]
[1754549814178,7.2842,3700.6,3700.5,0.4611]
[1754549814456,7.5367589,3700.6,3700.5,0.4611]
[1754549814658,7.53674915,3700.6,3700.5,0.4611]
[1754549817354,3.0,3700.5,3700.1,0.4621]
[1754549817535,4.40154915,3700.4,3700.1,0.001]
[1754549817737,0.1352,3700.2,3700.1,0.001]
[1754549818086,4.2832,3700.2,3700.1,0.001]
[1754549818848,4.2832,3700.2,3700.1,0.4621]
[1754549819357,4.2832,3700.2,3700.1,0.001]
[1754549819559,4.2832,3700.2,3700.1,3.61612351]
[1754549819759,4.148,3700.2,3700.1,3.61612351]
[1754549819959,4.148,3700.2,3700.1,0.77859386]
[1754549820177,4.148,3700.2,3700.1,0.4621]
[1754549820470,4.2832,3700.2,3700.1,3.16472965]
[1754549820652,4.2832,3700.2,3700.1,0.4621]
[1754549820825,4.2832,3700.2,3700.1,3.16472965]
[1754549821021,4.2832,3700.2,3700.1,0.001]
[1754549821521,4.53582173,3700.2,3700.1,0.001]
[1754549821943,4.98812173,3700.2,3700.1,0.001]
[1754549822879,7.98812173,3700.2,3700.1,0.001]
[1754549823046,10.69067834,3700.2,3700.1,0.001]
[1754549823233,8.45622173,3700.2,3700.1,0.001]
[1754549824665,7.98812173,3700.2,3700.1,0.001]
[1754549824969,7.53582173,3700.2,3700.1,0.001]
[1754549825265,8.45622173,3700.2,3700.1,0.001]
[1754549827129,23.33353688,3700.2,3700.1,0.001]
[1754549827369,22.00104302,3700.2,3700.1,0.001]
[1754549828269,19.29848641,3700.2,3700.1,0.001]
[1754549828457,9.81881473,3700.2,3700.1,0.001]
[1754549828660,12.52137134,3700.2,3700.1,0.001]
[1754549829157,9.81881473,3700.2,3700.1,0.001]
[1754549829565,19.29848641,3700.2,3700.1,0.001]
[1754549829781,21.44062383,3700.2,3700.1,0.001]
[1754549830658,7.53582173,3700.2,3700.1,0.001]
[1754549830979,8.45622173,3700.2,3700.1,0.001]
[1754549831556,11.15877834,3700.2,3700.1,0.001]
[1754549832246,8.45622173,3700.2,3700.1,0.001]
[1754549834084,4.30822173,3700.2,3700.1,0.001]
[1754549834285,11.15877834,3700.2,3700.1,0.001]
[1754549834586,8.45622173,3700.2,3700.1,0.001]
[1754549835081,11.15877834,3700.2,3700.1,0.001]
[1754549835290,8.45622173,3700.2,3700.1,0.001]
[1754549836268,21.18845002,3700.2,3700.1,0.001]
[1754549836483,18.48589341,3700.2,3700.1,0.001]
[1754549836784,8.08582173,3700.2,3700.1,0.001]
[1754549836990,8.08582173,3700.2,3700.1,0.4621]
[1754549837294,8.0854951,3700.2,3700.1,0.4621]
[1754549837467,8.0854951,3700.2,3700.1,0.001]
[1754549837791,9.0058951,3700.2,3700.1,0.001]
[1754549837994,3.3874951,3700.2,3700.1,0.4621]
[1754549838159,7.5344951,3700.2,3700.1,3.6161167]
[1754549838855,3.3874951,3700.2,3700.1,3.29962965]
[1754549839087,4.5344951,3700.2,3700.1,3.29962965]
[1754549839597,7.2822,3700.2,3700.1,3.29962965]
[1754549839804,7.147,3700.2,3700.1,3.29962965]
[1754549840794,3.0,3700.2,3700.1,3.29962965]
[1754549841100,7.147,3700.2,3700.1,3.29962965]
[1754549841696,3.0,3700.2,3700.1,3.29962965]
[1754549842008,7.147,3700.2,3700.1,3.91338966]
[1754549842778,3.0,3700.2,3700.1,3.91338966]
[1754549843108,7.146,3700.2,3700.1,3.91338966]
[1754549843487,3.0,3700.2,3700.1,3.91338966]
[1754549843676,7.146,3700.2,3700.1,3.91338966]
[1754549843861,3.0,3700.2,3700.1,3.91338966]
[1754549844064,7.146,3700.2,3700.1,3.77848966]
[1754549844276,7.146,3700.2,3700.1,3.91338966]
[1754549844481,7.146,3700.2,3700.1,3.77848966]
[1754549846107,3.0,3700.2,3700.1,3.77848966]
[1754549846313,7.146,3700.2,3700.1,3.91338966]
[1754549846472,3.0,3700.2,3700.1,3.91338966]
[1754549846978,0.55,3700.5,3700.2,2.70255661]
[1754549847169,7.146,3700.4,3700.3,0.40485166]
[1754549847372,7.146,3700.4,3700.3,0.88685166]
[1754549848313,7.958351,3700.4,3700.3,3.58933524]
[1754549848920,3.812351,3700.4,3700.3,3.58933524]
[1754549849079,7.958351,3700.4,3700.3,3.58933524]
[1754549849932,7.958351,3700.4,3700.3,0.40485166]
[1754549850104,0.55,3700.3,3700.1,0.1362]
[1754549850276,7.8302,3700.2,3700.1,0.001]
[1754549850477,8.08249272,3700.2,3700.1,0.001]
[1754549850698,8.7277,3700.2,3700.1,0.001]
[1754549850915,10.11081256,3700.2,3700.1,0.001]
[1754549851373,5.96581256,3700.2,3700.1,0.001]
[1754549851579,10.11081256,3700.2,3700.1,0.001]
[1754549851933,10.11080862,3700.2,3700.1,0.001]
[1754549852293,8.89492003,3700.2,3700.1,0.001]
[1754549852536,9.79242003,3700.2,3700.1,0.001]
[1754549855337,8.75972003,3700.2,3700.1,0.001]
[1754549856605,9.20382003,3700.2,3700.1,0.001]
[1754549858142,8.75972003,3700.2,3700.1,0.001]
[1754549858323,8.75972003,3700.2,3700.1,2.70362965]
[1754549858324,4.362434,3700.2,3700.1,2.70362965]
[1754549858506,8.507434,3700.2,3700.1,3.18562965]
[1754549858811,3.812434,3700.2,3700.1,3.18562965]
[1754549859013,7.957434,3700.2,3700.1,3.18562965]
[1754549860232,7.957434,3700.2,3700.1,0.483]
[1754549861139,7.957434,3700.2,3700.1,0.001]
[1754549861552,8.854934,3700.2,3700.1,0.001]
[1754549861903,8.951534,3700.2,3700.1,0.001]
[1754549862102,10.61072876,3700.2,3700.1,0.001]
[1754549862507,10.74592876,3700.2,3700.1,0.001]
[1754549863741,10.74602338,3700.2,3700.1,0.001]
[1754549866039,5.19360998,3700.2,3700.1,0.001]
[1754549866250,6.79100998,3700.2,3700.1,0.001]
[1754549866744,6.79130657,3700.2,3700.1,0.001]
[1754549867525,9.79130657,3700.2,3700.1,0.001]
[1754549868249,8.89380657,3700.2,3700.1,0.001]
[1754549868553,9.79130657,3700.2,3700.1,0.001]
[1754549870250,8.75760657,3700.2,3700.1,0.001]
[1754549870831,9.70400657,3700.2,3700.1,0.001]
[1754549872222,10.95816906,3700.2,3700.1,0.001]
[1754549873123,10.01176906,3700.2,3700.1,0.001]
[1754549873338,10.95816906,3700.2,3700.1,0.001]
[1754549874459,4.61460657,3700.2,3700.1,0.001]
[1754549874665,8.75760657,3700.2,3700.1,0.001]
[1754549874827,9.70400657,3700.2,3700.1,0.001]
[1754549875456,12.40656318,3700.2,3700.1,0.001]
[1754549875727,12.72495177,3700.2,3700.1,0.001]
[1754549875928,14.31115316,3700.2,3700.1,0.001]
[1754549878367,13.99276457,3700.2,3700.1,0.001]
[1754549878567,13.99315189,3700.2,3700.1,0.001]
[1754549879558,6.20119528,3700.2,3700.1,0.001]
[1754549879878,8.89319389,3700.2,3700.1,0.001]
[1754549880174,12.5421505,3700.2,3700.1,0.001]
[1754549887950,12.5411505,3700.2,3700.1,0.001]
[1754549892632,12.54093622,3700.2,3700.1,0.001]
[1754549895401,12.54106232,3700.2,3700.1,0.001]
[1754549895700,14.06541052,3700.2,3700.1,0.001]
[1754549897328,4.75010571,3700.2,3700.1,0.001]
[1754549897535,8.89110571,3700.2,3700.1,0.001]
[1754549897695,8.89110571,3700.2,3700.1,0.472]
[1754549897894,8.89110571,3700.2,3700.1,0.001]
[1754549899932,8.89010571,3700.2,3700.1,0.001]
[1754549902832,8.89012365,3700.2,3700.1,0.001]
[1754549903302,4.75012365,3700.2,3700.1,0.001]
[1754549903502,8.89012365,3700.2,3700.1,0.4606]
[1754549903925,8.89012365,3700.2,3700.1,0.001]
[1754549904496,1.06489864,3700.2,3700.1,0.4606]
[1754549904713,5.20489864,3700.2,3700.1,0.5955]
[1754549905003,8.20489864,3700.2,3700.1,0.5955]
[1754549905245,8.20489864,3700.2,3700.1,0.001]
[1754549905444,9.66509864,3700.2,3700.1,0.001]
[1754549905611,9.80029864,3700.2,3700.1,0.001]
[1754549906745,12.50285525,3700.2,3700.1,0.001]
[1754549907446,12.25039061,3700.2,3700.1,0.001]
[1754549907647,12.5027848,3700.2,3700.1,0.001]
[1754549908313,4.20002819,3700.2,3700.1,0.4606]
[1754549908539,8.20382819,3700.2,3700.1,0.4606]
[1754549909922,8.20382819,3700.2,3700.1,0.001]
[1754549910950,4.61482819,3700.2,3700.1,0.001]
[1754549911262,8.20382819,3700.2,3700.1,0.4606]
[1754549911556,8.20382819,3700.2,3700.1,0.001]
[1754549912435,8.75382819,3700.2,3700.1,0.001]
[1754549912776,13.43763762,3700.2,3700.1,0.001]
[1754549929271,13.75602621,3700.2,3700.1,0.001]
[1754549930594,13.75565353,3700.2,3700.1,0.001]
[1754549931300,13.755651,3700.2,3700.1,0.001]
[1754549932873,13.43726241,3700.2,3700.1,0.001]
[1754549933997,13.755651,3700.2,3700.1,0.001]
[1754549935416,3.2528488,3699.8,3699.7,0.001]
[1754549935721,10.64086778,3699.8,3699.7,0.001]
[1754549936213,11.69296778,3699.8,3699.7,0.001]
[1754549936577,12.15846778,3699.8,3699.7,0.001]
[1754549937979,12.47685637,3699.8,3699.7,0.001]
[1754549938184,14.15939816,3699.8,3699.7,0.001]
[1754549939912,13.90737918,3699.8,3699.7,0.001]
[1754549940113,14.15906721,3699.8,3699.7,0.001]
[1754549940607,14.15904177,3699.8,3699.7,0.001]
[1754549946626,12.92275318,3699.8,3699.7,0.001]
[1754549949636,8.78775318,3699.8,3699.7,0.4665]
[1754549949839,12.92275318,3699.8,3699.7,0.4665]
[1754549950141,8.78775318,3699.8,3699.7,0.4665]
[1754549950311,11.24021139,3699.8,3699.7,0.4665]
[1754549950698,10.69021139,3699.8,3699.7,0.4665]
[1754549951215,11.24021139,3699.8,3699.7,0.4665]
[1754549952610,11.24021139,3699.8,3699.7,0.001]
[1754549953375,11.24021139,3699.8,3699.7,0.4665]
[1754549953556,7.10521139,3699.8,3699.7,0.4665]
[1754549953847,11.24021139,3699.8,3699.7,0.4665]
[1754549954951,7.10521139,3699.8,3699.7,0.4665]
[1754549955160,11.23921139,3699.8,3699.7,0.4665]
[1754549956059,11.23921139,3699.8,3699.7,0.001]
[1754549956958,11.23926986,3699.8,3699.7,0.001]
[1754549957377,7.10526986,3699.8,3699.7,0.001]
[1754549957540,8.53642106,3699.8,3699.7,0.001]
[1754549957744,8.53642106,3699.8,3699.7,0.4665]
[1754549957990,8.53642106,3699.8,3699.7,0.001]
[1754549958490,8.53642106,3699.8,3699.7,0.4665]
[1754549958981,4.40242106,3699.8,3699.7,0.4665]
[1754549959371,8.53642106,3699.8,3699.7,0.4665]
[1754549961578,8.53642106,3699.8,3699.7,0.001]
[1754549962983,8.53568135,3699.8,3699.7,0.001]
[1754549963889,11.23853015,3699.8,3699.7,0.001]
[1754549964087,12.14713015,3699.8,3699.7,0.001]
[1754549964589,9.44428135,3699.8,3699.7,0.001]
[1754549965086,12.14713015,3699.8,3699.7,0.001]
[1754549965787,9.44428135,3699.8,3699.7,0.001]
[1754549965946,9.44432975,3699.8,3699.7,0.001]
[1754549966147,8.53572975,3699.8,3699.7,0.001]
[1754549966870,4.40272975,3699.8,3699.7,0.001]
[1754549967183,11.23857855,3699.8,3699.7,0.001]
[1754549967349,8.53572975,3699.8,3699.7,0.001]
[1754549967685,11.23857855,3699.8,3699.7,0.001]
[1754549968544,8.97672975,3699.8,3699.7,0.001]
[1754549968885,8.7247,3699.8,3699.7,0.001]
[1754549969089,8.97674057,3699.8,3699.7,0.001]
[1754549969644,4.40274057,3699.8,3699.7,0.001]
[1754549969846,8.53474057,3699.8,3699.7,0.001]